bitfinex/quotes_BTCUSD_20251231
["timestamp","ask_amount","ask_price","bid_price","bid_amount"]
[1767193741752,0.0114,88426.0,88418.0,0.01130991]
[1767193741942,0.000349,88422.0,88415.0,0.01131029]
[1767193742143,0.000349,88415.0,88408.0,0.01131119]
[1767193742339,0.04667377,88414.0,88404.0,0.05655839]
[1767193742550,0.04667377,88414.0,88401.0,0.01131208]
[1767193742763,0.04667377,88414.0,88400.0,0.0114]
[1767193742965,0.04667377,88414.0,88402.0,0.01131196]
[1767193743218,0.04667377,88414.0,88403.0,0.00905848]
[1767193743643,0.04667377,88414.0,88403.0,0.0769293]
[1767193743814,0.04667377,88414.0,88403.0,0.02037031]
[1767193744265,0.04667377,88414.0,88404.0,0.0113117]
[1767193744654,0.04667377,88414.0,88404.0,0.06786997]
[1767193744850,0.00010638,88427.0,88396.0,0.26417855]
[1767193744851,0.0114,88417.0,88414.0,0.04943463]
[1767193745069,0.00010638,88427.0,88416.0,0.01131017]
[1767193745070,0.04678015,88427.0,88416.0,0.01131017]
[1767193745274,0.04678015,88427.0,88417.0,0.01131004]
[1767193745389,0.0114,88426.0,88423.0,0.0678553]
[1767193745589,0.0114,88426.0,88422.0,0.05654642]
[1767193745786,0.0114,88426.0,88419.0,0.04923399]
[1767193746027,0.0114,88426.0,88423.0,0.06785555]
[1767193746765,0.0114,88426.0,88425.0,0.05654509]
[1767193746963,0.0112,88426.0,88425.0,0.05654509]
[1767193747173,0.04528,88438.0,88425.0,0.05654509]
[1767193747174,0.0002,88436.0,88435.0,0.0565387]
[1767193747348,0.0002,88436.0,88435.0,0.0559897]
[1767193747720,0.0114,88442.0,88441.0,0.05653486]
[1767193747843,0.04692467,88448.0,88436.0,0.0002]
[1767193747844,0.04667377,88440.0,88436.0,0.0002]
[1767193748041,0.04667377,88440.0,88429.0,0.00976568]
[1767193748242,0.04678011,88440.0,88428.0,0.0114]
[1767193748464,0.04678011,88440.0,88428.0,0.02158744]
[1767193749184,0.04678011,88440.0,88428.0,0.03289607]
[1767193749386,0.04678011,88440.0,88428.0,0.02158744]
[1767193749678,0.04678011,88440.0,88428.0,0.0112]
[1767193750807,0.04678011,88440.0,88428.0,0.02250863]
[1767193751156,0.04678011,88440.0,88428.0,0.0112]
[1767193751762,0.04678011,88440.0,88422.0,0.0113094]
[1767193752001,0.04678011,88440.0,88421.0,0.0114]
[1767193752303,0.04678011,88440.0,88417.0,0.22619916]
[1767193752304,0.02407125,88439.0,88416.0,0.0002]
[1767193752458,0.00010634,88440.0,88416.0,0.0002]
[1767193752459,0.02407125,88438.0,88416.0,0.0002]
[1767193752683,0.04667377,88436.0,88416.0,0.0002]
[1767193753009,0.04667377,88434.0,88416.0,0.0002]
[1767193753200,0.04667377,88434.0,88417.0,0.00907759]
[1767193753401,0.04667377,88434.0,88417.0,0.00903493]
[1767193754599,0.00055,88417.0,88416.0,0.0002]
[1767193755316,0.05807377,88425.0,88416.0,0.0002]
[1767193755667,0.05807377,88425.0,88405.0,0.01131157]
[1767193755921,0.0002,88416.0,88406.0,0.06786842]
[1767193756125,0.00010634,88440.0,88408.0,0.04631708]
[1767193756126,0.0114,88423.0,88408.0,0.04631708]
[1767193756265,0.04667377,88422.0,88406.0,0.0002]
[1767193757880,0.0114,88423.0,88403.0,0.00056203]
[1767193757881,0.0002,88406.0,88403.0,0.00056203]
[1767193758070,0.0002,88406.0,88395.0,0.0002509]
[1767193758071,0.04667377,88402.0,88395.0,0.0002509]
[1767193758808,0.04667377,88402.0,88384.0,0.02271426]
[1767193758809,0.04667377,88402.0,88384.0,0.0114]
[1767193759013,0.04667377,88402.0,88387.0,0.01131388]
[1767193759214,0.04576015,88405.0,88402.0,0.000749]
[1767193759455,0.04576015,88405.0,88390.0,0.01131349]
[1767193759664,0.04576015,88405.0,88392.0,0.01131324]
[1767193759806,0.04576015,88405.0,88395.0,0.01131285]
[1767193760013,0.04576015,88405.0,88395.0,0.06787704]
[1767193760233,0.04576015,88405.0,88396.0,0.01131272]
[1767193760994,0.04576015,88405.0,88397.0,0.0113126]
[1767193761148,0.04576015,88405.0,88397.0,0.06787551]
[1767193761500,0.04576015,88405.0,88394.0,0.01131298]
[1767193761731,0.04576015,88405.0,88395.0,0.01131285]
[1767193761873,0.04576015,88405.0,88394.0,0.01131298]
[1767193762338,0.04576015,88405.0,88390.0,0.11608014]
[1767193762609,0.04576015,88405.0,88364.0,0.53955632]
[1767193762610,0.00035,88394.0,88384.0,0.00010632]
[1767193763199,0.05982496,88395.0,88384.0,0.00010632]
[1767193763710,0.0114,88395.0,88384.0,0.00010632]
[1767193764495,0.04842496,88394.0,88384.0,0.00010632]
[1767193764897,0.0114,88395.0,88384.0,0.00010632]
[1767193765738,0.0114,88395.0,88385.0,0.01151413]
[1767193765981,0.0114,88395.0,88386.0,0.011314]
[1767193766337,0.00467729,88395.0,88387.0,0.01131388]
[1767193766578,0.00467729,88395.0,88388.0,0.01131375]
[1767193766762,0.00467729,88395.0,88387.0,0.06788281]
[1767193766945,0.00467729,88395.0,88388.0,0.01131375]
[1767193767295,0.00467729,88395.0,88389.0,0.01131362]
[1767193767440,0.04862496,88405.0,88387.0,0.01131388]
[1767193767651,0.0114,88404.0,88388.0,0.04819976]
[1767193767847,0.04862496,88405.0,88389.0,0.01131362]
[1767193768146,0.04862496,88405.0,88394.0,0.04819976]
[1767193768147,0.0114,88404.0,88394.0,0.04819976]
[1767193768346,0.0002,88405.0,88394.0,0.04819976]
[1767193768549,0.0114,88404.0,88394.0,0.04819976]
[1767193768738,0.0114,88404.0,88390.0,0.05951325]
[1767193768935,0.0114,88404.0,88393.0,0.06787861]
[1767193769140,0.0002,88405.0,88388.0,0.22627416]
[1767193769141,0.0114,88403.0,88397.0,0.05951236]
[1767193769345,0.01085,88403.0,88397.0,0.04819976]
[1767193769965,0.01085,88403.0,88397.0,0.04815711]
[1767193770699,0.000549,88397.0,88390.0,0.04819976]
[1767193770904,0.04842496,88399.0,88383.0,0.04819976]
[1767193771105,0.01085,88403.0,88377.0,0.04819976]
[1767193771106,0.00055,88390.0,88377.0,0.04819976]
[1767193771302,0.00055,88390.0,88385.0,0.0002]
[1767193771464,0.04842496,88389.0,88378.0,0.0114]
[1767193771874,0.04842496,88389.0,88368.0,0.01131631]
[1767193771875,0.04842496,88389.0,88372.0,0.0114]
[1767193772773,0.04842496,88389.0,88370.0,0.06789633]
[1767193772774,0.04842496,88389.0,88380.0,9e-07]
[1767193773786,0.04842496,88389.0,88366.0,0.0002]
[1767193773985,0.04842496,88389.0,88366.0,0.00744324]
[1767193774978,0.0002,88405.0,88368.0,0.05951607]
[1767193775238,0.04842496,88403.0,88368.0,0.05951607]
[1767193775437,0.04842496,88401.0,88370.0,0.04819976]
[1767193775604,0.0002,88405.0,88370.0,0.04819976]
[1767193775605,0.04842496,88399.0,88373.0,0.04819976]
[1767193775805,0.04842496,88399.0,88375.0,0.04819976]
[1767193776030,0.04842496,88399.0,88374.0,0.010478]
[1767193776998,0.04842496,88399.0,88366.0,0.00030644]
[1767193778336,0.867264,88396.0,88366.0,0.00030644]
[1767193778502,0.04842496,88395.0,88366.0,0.00030644]
[1767193779259,0.04842496,88395.0,88367.0,0.04819976]
[1767193779602,0.04842496,88395.0,88367.0,0.0595162]
[1767193779804,0.04842496,88395.0,88367.0,0.04819976]
[1767193780306,0.04842496,88393.0,88368.0,0.04819976]
[1767193780528,0.04842496,88391.0,88370.0,0.04819976]
[1767193780729,0.04842496,88391.0,88371.0,0.01131592]
[1767193780957,0.04842496,88391.0,88372.0,0.00937711]
[1767193781258,0.05982496,88390.0,88373.0,0.04819976]
[1767193781457,0.0114,88389.0,88373.0,0.04819976]
[1767193782434,0.05982496,88389.0,88373.0,0.05951543]
[1767193783159,0.05982496,88389.0,88374.0,0.01131554]
[1767193783912,0.04842496,88389.0,88373.0,0.11609375]
[1767193784132,0.0114,88388.0,88373.0,0.04819976]
[1767193784726,0.05982496,88388.0,88373.0,0.04819976]
[1767193785059,0.05982496,88388.0,88373.0,0.05951543]
[1767193785262,0.05982496,88388.0,88373.0,0.04819976]
[1767193785640,0.05982496,88388.0,88373.0,0.01131567]
[1767193785858,0.05982496,88388.0,88374.0,0.01131554]
[1767193786440,0.05982496,88388.0,88375.0,0.01131541]
[1767193786641,0.03004973,88402.0,88388.0,0.00025]
[1767193786642,0.04528,88398.0,88388.0,0.00025]
[1767193786844,0.04842496,88396.0,88388.0,0.00025]
[1767193787042,0.02402081,88395.0,88388.0,0.00025]
[1767193787241,0.02402081,88395.0,88380.0,0.04819976]
[1767193787443,0.02402081,88394.0,88380.0,0.04819976]
[1767193787664,0.02402081,88393.0,88380.0,0.04819976]
[1767193787830,0.02402081,88392.0,88380.0,0.04819976]
[1767193788032,0.0114,88394.0,88380.0,0.04819976]
[1767193788402,0.0114,88394.0,88380.0,0.05951453]
[1767193788546,0.0114,88394.0,88380.0,0.04819976]
[1767193788734,0.0114,88394.0,88379.0,0.06788888]
[1767193788934,0.04842496,88393.0,88379.0,0.0113149]
[1767193789149,0.02402923,88392.0,88380.0,0.01131477]
[1767193789361,0.02402923,88392.0,88379.0,0.06788941]
[1767193789559,0.04842496,88393.0,88378.0,0.04819976]
[1767193789760,0.04842496,88393.0,88369.0,0.01131618]
[1767193789761,0.04872396,88378.0,88366.0,0.00030644]
[1767193789961,0.05982496,88378.0,88366.0,0.00030644]
[1767193790374,0.05982496,88378.0,88367.0,0.00598235]
[1767193790832,0.05982496,88378.0,88366.0,0.00030644]
[1767193791691,0.0114,88378.0,88367.0,0.04695135]
[1767193792220,0.04560816,88377.0,88366.0,0.00030644]
[1767193792423,0.0114,88378.0,88366.0,0.00030644]
[1767193792624,0.0114,88378.0,88367.0,0.04695135]
[1767193792941,0.05700816,88377.0,88366.0,0.00030644]
[1767193793555,0.0114,88377.0,88367.0,0.03955174]
[1767193793754,0.0114,88377.0,88366.0,0.00030644]
[1767193794134,0.0114,88377.0,88367.0,0.03955174]
[1767193794539,0.0114,88376.0,88367.0,0.03955174]
[1767193794741,0.0114,88376.0,88366.0,0.00030644]
[1767193795835,0.0114,88376.0,88367.0,0.01675174]
[1767193796349,0.0114,88376.0,88366.0,0.00030644]
[1767193796553,0.0114,88376.0,88366.0,0.01705818]
[1767193796757,0.05700816,88376.0,88366.0,0.00030644]
[1767193796959,0.0114,88376.0,88367.0,0.01675174]
[1767193797194,0.0114,88378.0,88367.0,0.00535174]
[1767193798131,0.04615716,88367.0,88366.0,0.00030644]
[1767193798345,0.0114,88378.0,88366.0,4.4e-07]
[1767193798477,0.04560816,88377.0,88366.0,4.4e-07]
[1767193800276,0.00659726,88376.0,88367.0,0.00480274]
[1767193800474,0.03004973,88384.0,88367.0,0.00480274]
[1767193800475,0.03004973,88383.0,88376.0,0.000305]
[1767193800698,0.02184798,88382.0,88367.0,0.00480274]
[1767193800926,0.0114,88382.0,88367.0,0.00480274]
[1767193801349,0.0114,88381.0,88368.0,0.00955386]
[1767193802357,0.0114,88381.0,88368.0,0.02087017]
[1767193802557,0.0240845,88385.0,88376.0,0.01131528]
[1767193802712,0.0354845,88384.0,88376.0,0.05657623]
[1767193802915,0.0240845,88383.0,88375.0,0.06789242]
[1767193803147,0.0114,88384.0,88374.0,0.01131554]
[1767193803356,0.0114,88384.0,88377.0,0.01131516]
[1767193803558,0.0002,88386.0,88378.0,0.06788958]
[1767193803790,0.0002,88386.0,88371.0,0.22631741]
[1767193803792,0.03004973,88398.0,88376.0,0.62302494]
[1767193803935,0.04560816,88403.0,88388.0,0.05656876]
[1767193804140,0.04560816,88403.0,88385.0,0.0114]
[1767193804360,0.04560816,88403.0,88379.0,0.0113149]
[1767193804361,0.04560816,88403.0,88383.0,0.0114]
[1767193804773,0.03004973,88409.0,88383.0,0.0114]
[1767193804774,0.04560816,88401.0,88383.0,0.0114]
[1767193805552,0.04560816,88401.0,88387.0,0.01131388]
[1767193805754,0.04560816,88401.0,88386.0,0.011314]
[1767193805953,0.0114,88402.0,88388.0,0.05656839]
[1767193806161,0.0114,88402.0,88388.0,0.06788214]
[1767193806541,0.0114,88402.0,88389.0,0.01131362]
[1767193806751,0.0114,88402.0,88389.0,0.06788174]
[1767193806968,0.0114,88402.0,88390.0,0.01131349]
[1767193807160,0.0114,88402.0,88388.0,0.01131375]
[1767193807366,0.0114,88402.0,88390.0,0.01131349]
[1767193807781,0.0114,88408.0,88391.0,0.01131336]
[1767193807984,0.0114,88408.0,88390.0,0.01131349]
[1767193808208,0.0114,88408.0,88388.0,0.01131375]
[1767193808465,0.04560816,88404.0,88380.0,0.01131477]
[1767193808713,0.04560816,88404.0,88379.0,0.06788892]
[1767193809024,0.04560816,88404.0,88384.0,0.0114]
[1767193809538,0.04560816,88404.0,88385.0,0.01131413]
[1767193809855,0.04560816,88404.0,88384.0,0.06797128]
[1767193809856,0.04560816,88404.0,88384.0,0.02271426]
[1767193810008,0.04560816,88404.0,88384.0,0.0114]
[1767193810176,0.04560816,88404.0,88379.0,0.06788906]
[1767193810177,0.04560816,88404.0,88385.0,0.0114]
[1767193810630,0.04560816,88404.0,88387.0,0.01131388]
[1767193811041,0.04560816,88404.0,88387.0,0.06788294]
[1767193811214,0.04560816,88404.0,88387.0,0.01131388]
[1767193811599,0.04560816,88404.0,88386.0,0.06788401]
[1767193812519,0.04560816,88404.0,88386.0,0.011314]
[1767193812858,0.04560816,88404.0,88378.0,0.01131503]
[1767193813004,0.04560816,88404.0,88373.0,0.01131567]
[1767193813190,0.04560816,88402.0,88374.0,0.02271554]
[1767193813390,0.04560816,88402.0,88375.0,0.01131541]
[1767193813890,0.04560816,88402.0,88374.0,0.02271554]
[1767193814216,0.04560816,88402.0,88375.0,0.01131541]
[1767193814628,0.04560816,88402.0,88374.0,0.0114]
[1767193815059,0.04560816,88402.0,88374.0,0.02271554]
[1767193815223,0.04560816,88402.0,88375.0,0.01131541]
[1767193815426,0.04560816,88402.0,88376.0,0.01131528]
[1767193815778,0.04560816,88402.0,88374.0,0.0114]
[1767193815997,0.04560816,88402.0,88375.0,0.00792969]
[1767193816198,0.04560816,88402.0,88374.0,0.0114]
[1767193816345,0.04560816,88400.0,88374.0,0.0114]
[1767193816542,0.04560816,88398.0,88374.0,0.0114]
[1767193816913,0.04560816,88398.0,88366.0,0.00020044]
[1767193817027,0.04560816,88374.0,88366.0,0.00020044]
[1767193817231,0.0114,88399.0,88352.0,0.0114]
[1767193817232,0.04580816,88366.0,88352.0,0.0114]
[1767193817631,0.04560816,88366.0,88352.0,0.0114]
[1767193818950,0.04560816,88366.0,88356.0,0.00829205]
[1767193819148,0.04560816,88366.0,88356.0,0.0002916]
[1767193819465,0.04851748,88372.0,88356.0,0.0002916]
[1767193819803,0.04862374,88372.0,88356.0,0.0002916]
[1767193821290,0.00010626,88372.0,88357.0,0.00020044]
[1767193821606,0.04922111,88371.0,88356.0,0.0002916]
[1767193821987,0.04922111,88371.0,88357.0,0.00913216]
[1767193822185,0.04922111,88371.0,88356.0,0.0002916]
[1767193826045,0.04922111,88371.0,88357.0,0.01131772]
[1767193826249,0.04922111,88371.0,88356.0,0.00049204]
[1767193826613,0.00010626,88372.0,88357.0,0.00020044]
[1767193826814,0.00010626,88372.0,88359.0,0.00020044]
[1767193827389,0.00010626,88372.0,88359.0,0.0115179]
[1767193827532,0.00010626,88372.0,88359.0,0.00020044]
[1767193827734,0.00010626,88372.0,88361.0,0.05658578]
[1767193828087,0.00010626,88372.0,88360.0,0.01131733]
[1767193828472,0.00010626,88372.0,88361.0,0.01131721]
[1767193828631,0.00010626,88372.0,88365.0,0.00020044]
[1767193828832,0.0114,88380.0,88367.0,9.418e-05]
[1767193829033,0.0114,88380.0,88364.0,0.05658371]
[1767193829236,0.0114,88380.0,88366.0,0.01131656]
[1767193829478,0.0114,88380.0,88367.0,0.05658162]
[1767193829636,0.0114,88380.0,88369.0,0.01131618]
[1767193829836,0.04021592,88405.0,88371.0,0.01131592]
[1767193829837,0.04922111,88398.0,88371.0,0.01131592]
[1767193830041,0.04922111,88398.0,88369.0,0.01131618]
[1767193830042,0.04922111,88390.0,88369.0,0.06789594]
[1767193830227,0.04922111,88390.0,88365.0,0.01131669]
[1767193830422,0.04922111,88390.0,88367.0,0.01131644]
[1767193830627,0.04922111,88390.0,88368.0,0.01131631]
[1767193831169,0.04922111,88388.0,88368.0,0.01131631]
[1767193831368,0.04922111,88388.0,88368.0,0.06789763]
[1767193831542,0.04922111,88388.0,88367.0,0.06789862]
[1767193831743,0.04922111,88388.0,88367.0,0.01131644]
[1767193832558,0.04922111,88388.0,88366.0,0.06789927]
[1767193832888,0.04922111,88388.0,88365.0,0.06789962]
[1767193833102,0.04922111,88388.0,88364.0,0.01131682]
[1767193833290,0.04922111,88388.0,88363.0,0.06790161]
[1767193833844,0.04922111,88388.0,88364.0,0.0679008]
[1767193834084,0.04922111,88388.0,88363.0,0.06790161]
[1767193834266,0.04922111,88388.0,88364.0,0.01131682]
[1767193834701,0.04922111,88388.0,88363.0,0.06790161]
[1767193834922,0.04922111,88388.0,88362.0,0.01131708]
[1767193835087,0.04922111,88388.0,88364.0,0.01131682]
[1767193835289,0.04922111,88388.0,88362.0,0.06790123]
[1767193835624,0.04922111,88388.0,88355.0,0.01131797]
[1767193835825,0.04922111,88386.0,88354.0,0.0116]
[1767193836029,0.04922111,88386.0,88355.0,0.06790769]
[1767193836185,0.04922111,88386.0,88356.0,0.01160945]
[1767193836394,0.04922111,88386.0,88354.0,0.0229181]
[1767193836609,0.04922111,88386.0,88355.0,0.0003718]
[1767193837241,0.04922111,88384.0,88355.0,0.0003718]
[1767193837416,0.04922111,88382.0,88355.0,0.0003718]
[1767193837616,0.04922111,88380.0,88355.0,0.0003718]
[1767193838377,0.02402018,88379.0,88355.0,0.0003718]
[1767193838503,0.04922111,88377.0,88355.0,0.0003718]
[1767193841031,0.04922111,88377.0,88357.0,0.01131772]
[1767193841230,0.04922111,88377.0,88355.0,0.0003718]
[1767193841466,0.04922111,88375.0,88355.0,0.0003718]
[1767193841669,0.04922111,88373.0,88355.0,0.0003718]
[1767193841868,0.02403599,88372.0,88355.0,0.0003718]
[1767193842098,0.04922111,88371.0,88355.0,0.0003718]
[1767193842864,0.02404636,88370.0,88355.0,0.0003718]
[1767193843066,0.04922111,88369.0,88355.0,0.0003718]
[1767193843293,0.04922111,88369.0,88355.0,0.00047806]
[1767193846764,0.04922111,88354.0,88339.0,0.01152002]
[1767193846985,0.04922111,88354.0,88343.0,0.0005496]
[1767193848851,0.04922111,88352.0,88331.0,0.0001963]
[1767193849199,0.04922111,88350.0,88331.0,0.00814901]
[1767193849395,0.04922111,88348.0,88331.0,0.00814901]
[1767193849652,0.04922111,88348.0,88331.0,0.0001963]
[1767193851130,0.04922111,88348.0,88331.0,0.01151735]
[1767193851482,0.0114,88349.0,88332.0,0.226418]
[1767193851680,0.0114,88349.0,88333.0,0.01132079]
[1767193851885,0.05775042,88349.0,88333.0,0.0566036]
[1767193852125,0.05775042,88349.0,88337.0,0.01132028]
[1767193852299,0.05775042,88349.0,88331.0,0.0001963]
[1767193853127,0.05775042,88349.0,88331.0,0.01151735]
[1767193853335,0.05775042,88349.0,88331.0,0.0001963]
[1767193853545,0.05775042,88349.0,88333.0,0.01132079]
[1767193853881,0.00035471,88352.0,88349.0,0.000549]
[1767193854160,0.0114,88351.0,88341.0,0.01131977]
[1767193854320,0.0114,88351.0,88342.0,0.05659764]
[1767193854518,0.0114,88351.0,88344.0,0.01131938]
[1767193854706,0.0114,88351.0,88343.0,0.06791687]
[1767193854707,0.010851,88351.0,88343.0,0.06791655]
[1767193854910,0.00035471,88352.0,88343.0,0.01131951]
[1767193855129,0.00035471,88352.0,88344.0,0.01131938]
[1767193855521,0.00035471,88352.0,88345.0,0.01131925]
[1767193855719,0.00035471,88352.0,88335.0,0.22641048]
[1767193855720,0.00035471,88352.0,88335.0,0.01132054]
[1767193855948,0.00035471,88352.0,88338.0,0.01132015]
[1767193856152,0.00035471,88352.0,88341.0,0.01131977]
[1767193856313,0.00035471,88352.0,88339.0,0.05659954]
[1767193856516,0.00035471,88352.0,88340.0,0.06791935]
[1767193856711,0.00035471,88352.0,88340.0,0.0113199]
[1767193856918,0.00035471,88352.0,88339.0,0.01132002]
[1767193857163,0.00035471,88352.0,88340.0,0.0113199]
[1767193857345,0.00035471,88352.0,88339.0,0.01132002]
[1767193857931,0.00035471,88352.0,88340.0,0.0113199]
[1767193858476,0.00035471,88352.0,88341.0,0.01131977]
[1767193858659,0.00035471,88352.0,88342.0,0.01131964]
[1767193859586,0.00035471,88352.0,88341.0,0.06791844]
[1767193859775,0.00035471,88352.0,88342.0,0.01131964]
[1767193860093,0.00035471,88352.0,88343.0,0.01131951]
[1767193860586,0.00035471,88352.0,88347.0,0.011319]
[1767193860795,0.00035471,88352.0,88348.0,0.01131887]
[1767193861004,0.00035471,88352.0,88347.0,0.0679134]
[1767193861206,0.00035471,88352.0,88346.0,0.05659447]
[1767193861207,0.00035471,88352.0,88343.0,0.06791701]
[1767193861367,0.00035471,88352.0,88344.0,0.01131938]
[1767193861942,0.00035471,88352.0,88346.0,0.01131913]
[1767193862153,0.00035471,88352.0,88347.0,0.011319]
[1767193862363,0.00035471,88352.0,88342.0,0.05659765]
[1767193862567,0.50035471,88352.0,88340.0,0.06791928]
[1767193862785,0.50035471,88352.0,88341.0,0.01131977]
[1767193863200,0.50035471,88352.0,88340.0,0.06791928]
[1767193863419,0.50035471,88352.0,88341.0,0.01131977]
[1767193863640,0.50035471,88352.0,88342.0,0.01131964]
[1767193863979,0.50035471,88352.0,88341.0,0.01131977]
[1767193864173,0.50035471,88352.0,88342.0,0.01131964]
[1767193864382,0.50035471,88352.0,88342.0,0.06791737]
[1767193864581,0.50035471,88352.0,88344.0,0.01131938]
[1767193864806,0.50035471,88352.0,88341.0,0.01131977]
[1767193865226,0.50035471,88352.0,88344.0,0.01131938]
[1767193866045,0.50035471,88352.0,88343.0,0.06791659]
[1767193866231,0.50035471,88352.0,88345.0,0.01131925]
[1767193866428,0.50035471,88352.0,88346.0,0.01131913]
[1767193866776,0.50035471,88352.0,88347.0,0.011319]
[1767193866942,0.000549,88347.0,88312.0,0.45293919]
[1767193867124,0.04635042,88346.0,88332.0,0.02272092]
[1767193867331,0.04635042,88346.0,88333.0,0.01132079]
[1767193867717,0.04635042,88346.0,88334.0,0.01132066]
[1767193867919,0.04635042,88346.0,88337.0,0.01132028]
[1767193868119,0.04635042,88346.0,88336.0,0.05660199]
[1767193868120,0.04635042,88346.0,88336.0,0.01132041]
[1767193868314,0.04635042,88346.0,88335.0,0.06792265]
[1767193868574,0.04635042,88351.0,88331.0,0.0001963]
[1767193869112,0.04635042,88349.0,88331.0,3e-07]
[1767193870167,0.04635042,88349.0,88319.0,0.22645156]
[1767193870168,0.04635042,88347.0,88320.0,0.0001963]
[1767193870344,0.50035471,88352.0,88320.0,3e-07]
[1767193870345,0.04635042,88345.0,88320.0,3e-07]
[1767193870559,0.04635042,88343.0,88320.0,3e-07]
[1767193870760,0.04635042,88341.0,88320.0,3e-07]
[1767193871009,0.04635042,88339.0,88320.0,3e-07]
[1767193871214,0.04635042,88339.0,88320.0,0.06567081]
[1767193871399,0.04635042,88339.0,88320.0,0.02038131]
[1767193871737,0.04635042,88339.0,88320.0,0.02038101]
[1767193871991,0.04635042,88339.0,88320.0,0.00905855]
[1767193872291,0.04635042,88339.0,88320.0,0.06567083]
[1767193872499,0.04635042,88339.0,88326.0,0.01132169]
[1767193872697,0.04635042,88349.0,88339.0,0.000392]
[1767193872854,0.04635042,88345.0,88332.0,0.01132092]
[1767193873057,0.04653942,88350.0,88332.0,0.23773686]
[1767193873258,0.0114,88347.0,88333.0,0.01132079]
[1767193873468,0.0114,88347.0,88332.0,0.06792552]
[1767193873672,0.0114,88347.0,88334.0,0.01132066]
[1767193873874,0.0114,88347.0,88336.0,0.06792189]
[1767193874214,0.0114,88347.0,88335.0,0.01132054]
[1767193874459,0.0114,88347.0,88336.0,0.01132041]
[1767193874652,0.0114,88347.0,88337.0,0.01132028]
[1767193874855,0.0114,88347.0,88336.0,0.01132041]
[1767193875077,0.05775042,88347.0,88333.0,0.01132079]
[1767193875547,0.05775042,88347.0,88334.0,0.01132066]
[1767193875691,0.05775042,88347.0,88336.0,0.01132041]
[1767193875898,0.05775042,88347.0,88337.0,0.01132028]
[1767193876134,0.05775042,88347.0,88337.0,0.05660139]
[1767193876473,0.0114,88348.0,88337.0,0.05660139]
[1767193876651,0.0114,88348.0,88338.0,0.05660022]
[1767193876807,0.0114,88348.0,88339.0,0.01132002]
[1767193877012,0.000189,88350.0,88346.0,0.01131913]
[1767193877213,0.04635042,88355.0,88342.0,0.01131964]
[1767193877214,0.0114,88354.0,88342.0,0.01131964]
[1767193877413,0.0114,88354.0,88344.0,0.01131938]
[1767193877615,0.50015171,88352.0,88344.0,0.01131938]
[1767193877817,0.50015171,88352.0,88341.0,0.01131977]
[1767193878116,0.50015171,88352.0,88343.0,0.01131951]
[1767193878338,0.50015171,88352.0,88343.0,0.06791654]
[1767193878537,0.50015171,88352.0,88342.0,0.02153557]
[1767193878894,0.50015171,88352.0,88343.0,0.01131951]
[1767193879537,0.50015171,88352.0,88342.0,0.02153557]
[1767193879801,0.50015171,88352.0,88342.0,0.01131964]
[1767193880008,0.50015171,88352.0,88341.0,0.01131977]
[1767193880555,0.50015171,88352.0,88341.0,0.06791806]
[1767193880817,0.50015171,88352.0,88340.0,0.0002]
[1767193880962,0.50015171,88352.0,88340.0,0.0115199]
[1767193882004,0.50015171,88352.0,88342.0,0.06791772]
[1767193882162,0.50015171,88352.0,88345.0,0.01131925]
[1767193882365,0.50015171,88352.0,88347.0,0.011319]
[1767193882589,0.50015171,88352.0,88346.0,0.01131913]
[1767193882744,0.50015171,88352.0,88346.0,0.06791437]
[1767193882952,0.50015171,88352.0,88347.0,0.011319]
[1767193883218,0.50015171,88352.0,88346.0,0.06791437]
[1767193883219,0.50015171,88352.0,88346.0,0.01131913]
[1767193883382,0.50015171,88352.0,88346.0,0.06791465]
[1767193884081,0.50015171,88352.0,88348.0,0.06791306]
[1767193884307,0.50015171,88352.0,88349.0,0.06791233]
[1767193884504,0.50015171,88352.0,88348.0,0.06791306]
[1767193884700,0.50015171,88352.0,88349.0,0.01131874]
[1767193884885,0.0002,88360.0,88351.0,0.01131849]
[1767193885085,0.000549,88351.0,88340.0,0.01175753]
[1767193885287,0.05035018,88351.0,88340.0,0.00043763]
[1767193885492,0.05035018,88351.0,88340.0,0.01183763]
[1767193885687,0.04980118,88351.0,88340.0,0.00043763]
[1767193885887,0.04980118,88351.0,88340.0,6.3e-07]
[1767193886098,0.06120118,88351.0,88340.0,6.3e-07]
[1767193886304,0.06120118,88351.0,88328.0,0.0114]
[1767193886528,0.06120118,88351.0,88328.0,0.01175471]
[1767193886702,0.06120118,88351.0,88329.0,0.00910097]
[1767193887249,0.06120118,88351.0,88329.0,0.02042228]
[1767193887643,0.06120118,88351.0,88329.0,0.00910097]
[1767193888247,0.06120118,88351.0,88329.0,0.02042228]
[1767193888659,0.06120118,88351.0,88329.0,0.00910097]
[1767193888815,0.06120118,88351.0,88328.0,0.01175471]
[1767193889212,0.06120118,88351.0,88331.0,0.01132105]
[1767193889415,0.06120118,88351.0,88333.0,0.01132079]
[1767193889621,0.06120118,88351.0,88331.0,0.06792572]
[1767193889830,0.06120118,88351.0,88332.0,0.01132092]
[1767193890040,0.06120118,88351.0,88333.0,0.01132079]
[1767193890265,0.06120118,88351.0,88332.0,0.0679254]
[1767193890441,0.06120118,88351.0,88333.0,0.01132079]
[1767193890642,0.04980118,88351.0,88335.0,0.01132054]
[1767193890847,0.0114,88350.0,88332.0,0.01132092]
[1767193891064,0.0114,88350.0,88333.0,0.01132079]
[1767193891265,0.0114,88350.0,88335.0,0.01132054]
[1767193891682,0.0114,88350.0,88336.0,0.01132041]
[1767193891880,0.04980118,88349.0,88332.0,0.01132092]
[1767193892038,0.04980118,88349.0,88328.0,0.00035471]
[1767193892238,0.0114,88350.0,88328.0,0.00035471]
[1767193892239,0.04980118,88331.0,88328.0,0.00035471]
[1767193893084,0.04980118,88331.0,88328.0,7.1e-07]
[1767193897899,0.04980118,88331.0,88314.0,0.0116341]
[1767193897900,0.0114,88335.0,88314.0,0.0002341]
[1767193897901,0.04980118,88329.0,88314.0,0.0002341]
[1767193898103,0.04980118,88329.0,88300.0,0.0002341]
[1767193898105,0.04980118,88313.0,88300.0,0.0002341]
[1767193898310,0.04980118,88313.0,88300.0,0.01155912]
[1767193898650,0.04980118,88313.0,88300.0,0.05685922]
[1767193898854,0.04956018,88313.0,88304.0,0.01132451]
[1767193899389,0.04980118,88314.0,88306.0,0.01132425]
[1767193899627,0.04925118,88314.0,88306.0,0.01132425]
[1767193899822,0.06120118,88315.0,88306.0,0.01132425]
[1767193900254,0.0114,88316.0,88312.0,0.01132348]
[1767193900449,0.04980118,88328.0,88315.0,0.0113231]
[1767193900622,0.00035449,88329.0,88316.0,0.06793782]
[1767193900623,0.0114,88327.0,88316.0,0.06793782]
[1767193900800,0.0114,88327.0,88317.0,0.01132284]
[1767193901005,0.00035449,88329.0,88316.0,0.01132297]
[1767193901226,0.00035449,88329.0,88321.0,0.01132233]
[1767193901413,0.00035449,88329.0,88322.0,0.05661083]
[1767193901613,0.00035449,88329.0,88322.0,0.0113222]
[1767193901814,0.00035449,88329.0,88318.0,0.01237558]